Cogmind - Beta 15 @@@ ROGUE MODE // 2025.06.10 @ 17:19:13 Player: Minty Result: Self-destructed Performance ------------- Evolutions (7) 3500 Regions Visited (19) 3800 Robots Destroyed (152) 760 Value Destroyed (6370) 6370 Prototype IDs (50) 1000 Alien Tech Used (0) 0 Bonus (4449) 4449 TOTAL SCORE: 19879 Bonus ------- Triggered Max Security 1000 High Alert Combat Kills 289 Follower Combat Kills 294 Entered Garrisons 600 Used RIF Installer 1000 Entered DSFs 500 Aligned with FarCom 300 Scanned by Researcher 500 Friendly Fire -34 Cogmind --------- Core Integrity 855/1300 Matter 236/300 Energy 170/170 System Corruption 30% Temperature Cool (9) Movement Treading (160) Location -3/Testing Parts ------- > --- POWER (2) -------- Light Antimatter Reactor > --- PROPULSION (6) --- Improved Heavy Treads Improved Heavy Treads Improved Heavy Treads > --- UTILITY (11) ----- Advanced Heat Sink Small Storage Unit Enhanced Optical Array Enhanced Optical Array Core Analyzer Centrium Medium Armor Plating Hacking Suite Improved System Shield > --- WEAPON (2) ------- (None) > --- INVENTORY (8) ---- Trap Reconfigurator Improved Remote Datajack Portable AFG (100) Peak State ------------ > --- POWER ------------ Light Particle Reactor > --- PROPULSION ------- Improved Heavy Treads Improved Heavy Treads Improved Heavy Treads > --- UTILITY ---------- Advanced Heat Sink Advanced Heat Sink Enhanced Optical Array Enhanced Optical Array Advanced Targeting Computer Kinecellerator Heavy Armor Plating Centrium Medium Armor Plating Hacking Suite Improved System Shield > --- WEAPON ----------- Improved Matter Neutralizer Linear Accelerator > --- INVENTORY -------- Improved Heavy Treads Trap Reconfigurator Tesla Bomb Launcher Improved Remote Datajack [Rating: 120] Favorites ----------- Power Light Antimatter Reactor Engine Reinforced Ion Engine Power Core Micro Fission Core Reactor Light Antimatter Reactor Propulsion Improved Carbon-fiber Leg Treads Light Treads Leg Improved Carbon-fiber Leg Wheel Compact Wheel Hover Unit Linear Gravjet Flight Unit Cooled Nuclear Pulse Thruster Utility Improved Targeting Computer Device Improved Heat Sink Storage Medium Storage Unit Processor Improved Targeting Computer Hackware Relay Coupler [Grunt] Protection Improved Light Armor Plating Weapon Assault Cannon Energy Gun Lightning Gun Energy Cannon Proton Cannon Ballistic Gun KE Penetrator Ballistic Cannon Assault Cannon Launcher Precision Rocket Launcher Special Weapon Remote Datajack Impact Weapon Heavy Mace Special Melee Weapon Improved Datajack Build | -11 -10 -9 -9 -9 -8 -8 -8 -8 -8 -6 -6 -6 -5 -5 -5 -5 -4 -3 -3 ------- Run | Yrd Mat Mat Min Exi Min Mat Sto Gar Rec Fac Gar Fac Fac Gar Fac DSF Fac Res Tes Slots Evolved 14 | . . 2 . . . 2 . . . 4 . . 2 . . . 2 2 . Power 1 | . . . . . . . . . . . . . . . . . 1 . . Propulsion 4 | . . . . . . 1 . . . 1 . . 1 . . . . 1 . Utility 9 | . . 2 . . . 1 . . . 3 . . 1 . . . 1 1 . Weapon . | . . . . . . . . . . . . . . . . . . . . Parts Attached 178 | . 9 7 13 1 1 9 4 21 1 7 4 28 12 10 3 . 17 24 7 Power 17 | . 1 1 2 . . . . 3 . . . 3 1 . 1 . 3 1 1 Engine 6 | . 1 1 2 . . . . 1 . . . 1 . . . . . . . Core 4 | . . . . . . . . . . . . . 1 . 1 . 2 . . Reactor 7 | . . . . . . . . 2 . . . 2 . . . . 1 1 1 Propulsion 46 | . 2 2 3 . . 3 . 4 . 2 . 10 2 2 . . 10 5 1 Treads 19 | . 2 2 3 . . . . . . . . 5 . 2 . . . 4 1 Leg 13 | . . . . . . 3 . 4 . 2 . 4 . . . . . . . Wheel 1 | . . . . . . . . . . . . . 1 . . . . . . Hover 2 | . . . . . . . . . . . . 1 1 . . . . . . Flight 11 | . . . . . . . . . . . . . . . . . 10 1 . Utility 71 | . 3 2 6 1 . 3 2 10 . 4 4 9 4 8 1 . 2 10 2 Device 20 | . 2 1 3 . . 2 1 . . 1 . 2 2 . 1 . 1 4 . Storage 4 | . . . . 1 . . . . . 1 . . . 1 . . . . 1 Processor 10 | . . 1 1 . . 1 . . . 1 . 3 . . . . . 2 1 Hackware 28 | . . . . . . . 1 8 . . 4 4 1 7 . . 1 2 . Protection 9 | . 1 . 2 . . . . 2 . 1 . . 1 . . . . 2 . Artifact . | . . . . . . . . . . . . . . . . . . . . Weapon 44 | . 3 2 2 . 1 3 2 4 1 1 . 6 5 . 1 . 2 8 3 Energy Gun 15 | . 3 2 2 . . 3 1 1 . . . . . . 1 . 1 1 . Energy Cannon 7 | . . . . . . . . . . . . 4 1 . . . . 1 1 Ballistic Gun 8 | . . . . . . . . . . 1 . . 1 . . . 1 3 2 Ballistic Cannon 5 | . . . . . . . . 2 . . . . 2 . . . . 1 . Launcher 4 | . . . . . 1 . 1 . . . . . . . . . . 2 . Special Weapon 2 | . . . . . . . . . . . . 1 1 . . . . . . Impact Weapon 1 | . . . . . . . . . 1 . . . . . . . . . . Slashing Weapon . | . . . . . . . . . . . . . . . . . . . . Piercing Weapon . | . . . . . . . . . . . . . . . . . . . . Special Melee Weapon 2 | . . . . . . . . 1 . . . 1 . . . . . . . Unidentified Prototypes 16 | . . . . . . . 1 . . 1 . 1 3 . 2 . 2 5 1 Corrupted Parts 7 | . 1 . . . . . . 2 . . . 1 . . . . . . 3 System Corruption 36 | . 2 . . . . . . 14 . . . 2 . . . . . . 18 Parts Lost 87 | . 1 . 3 . . . 3 5 1 . 10 14 1 10 . 2 21 7 9 Power 12 | . . . . . . . . 1 . . 1 1 . 1 . 1 5 1 1 Propulsion 29 | . . . 1 . . . . 3 1 . 4 6 . 1 . . 7 5 1 Utility 24 | . . . 1 . . . 1 . . . 2 4 1 7 . 1 3 . 4 Weapon 22 | . 1 . 1 . . . 2 1 . . 3 3 . 1 . . 6 1 3 Highest Loss Streak 10 | . 1 . 2 . . . 1 2 1 . 10 5 1 7 . 2 9 3 7 To Critical Strikes 1 | . . . . . . . . . . . . . . . . . 1 . . Average Backups 7 | . 6 7 7 7 7 9 9 9 10 10 9 4 5 4 4 4 2 4 3 Power 1 | . 1 1 1 2 2 2 2 1 1 1 1 . 1 1 . . . . . Propulsion . | . 4 2 1 . . . 1 . . . . . . . . . . . . Utility 2 | . . 1 1 . 1 3 2 5 7 7 6 2 1 . 1 1 . 1 1 Weapon 1 | . . 2 2 3 2 2 2 1 1 1 1 1 2 2 2 2 . 1 . Tool/Special . | . . . . . . . . . . . . . . . . . . . . Unused Backups 28 | . 4 5 3 2 . 1 . 8 . . . 1 3 . . . . . 1 Power 3 | . . . . . . . . 2 . . . . 1 . . . . . . Propulsion 9 | . 2 4 2 . . . . . . . . 1 . . . . . . . Utility 11 | . 1 . . 2 . 1 . 6 . . . . 1 . . . . . . Weapon 4 | . 1 1 1 . . . . . . . . . 1 . . . . . . Tool/Special 1 | . . . . . . . . . . . . . . . . . . . 1 Average Slot Usage (%) 80 | . 98 89 99 77 99 91 99 95 96 86 97 71 71 59 39 24 23 48 70 Engine 4 | . 14 11 11 11 11 9 9 . . . . 1 1 . . . . . . Reactor 2 | . . . . . . . . 8 9 6 5 2 . . . . . 3 3 Treads 7 | . 8 22 21 22 22 10 . . . . . 7 . . 5 . . 3 14 Leg 10 | . 18 . . . . 10 27 24 24 16 24 5 6 . . . . . . Flight 1 | . . . . . . . . . . . . . . . . . 8 11 . Device 8 | . 9 22 15 11 11 15 17 8 . 5 5 2 17 10 3 1 1 1 9 Storage 6 | . 14 11 11 11 11 9 9 9 9 6 5 . . . . . . . 2 Processor 9 | . . 1 17 22 22 18 18 5 . 5 6 10 5 5 5 5 5 9 13 Hackware 13 | . . . . . . . . 16 36 26 26 31 17 25 17 15 1 6 9 Protection 1 | . 3 . . . . . . 4 . 5 5 . . 2 . . 1 2 7 Energy Gun 7 | . 27 22 21 . 21 18 17 11 . . . . . . . . 2 . . Ballistic Cannon 3 | . . . . . . . . 5 18 13 11 . 1 5 . . . 1 3 Peak Build Rating 120 | . 10 15 17 16 18 36 37 50 44 61 63 61 63 67 42 31 43 118 120 Average Rating 36 | . 7 12 15 13 17 26 35 40 42 52 57 42 56 46 30 19 24 66 111 On Entrance 32 | 6 6 9 15 17 13 18 36 31 44 40 61 21 58 63 24 31 11 35 118 Naked Turns . | . . . . . . . . . . . . . . . . . . . . Heaviest Build 67 | 13 17 19 23 21 27 30 34 39 32 39 39 28 17 17 14 14 16 60 67 Greatest Support 225 | 20 40 40 43 43 43 54 54 56 56 53 50 90 18 18 23 15 40 225 225 Greatest Overweight (x) 5 | . . . . . . 1 . 1 . 1 3 4 . 1 4 4 1 5 . Average Overweight (x) . | . . . . . . . . . . . . . . . . . . . . Largest Inventory Capacity 10 | . 8 8 8 10 10 10 10 10 10 10 10 5 5 5 5 5 5 5 8 Average Capacity 7 | . 8 8 8 8 10 10 10 10 10 10 9 5 5 5 5 5 5 5 6 Most Carried 10 | . 8 8 8 8 9 10 10 10 10 10 10 5 5 5 5 5 5 5 6 Average Carried 7 | . 6 7 7 7 7 9 9 9 10 10 9 4 4 4 4 4 2 4 4 Final Capacity 10 | 8 8 8 8 10 10 10 10 10 10 10 5 5 5 5 5 5 5 5 8 Final Carried 10 | 6 8 8 8 8 9 10 10 10 10 10 5 5 5 5 4 5 3 5 3 Class Distribution -------------------- 53% | Mutant 27% | Bothacker-Mutant 5% | Skirmisher 4% | Hacker-Mutant 4% | Scavenger-Mutant 3% | Sprinter Dominant Class ---------------- Mutant | -10/Materials Mutant | -9/Materials Mutant | -9/Mines Mutant | -9/Exiles Mutant | -8/Mines Skirmisher | -8/Materials Skirmisher | -8/Storage Bothacker-Mutant | -8/Garrison Bothacker-Mutant | -8/Recycling Bothacker-Mutant | -6/Factory Bothacker-Mutant | -6/Garrison Mutant | -6/Factory Mutant | -5/Factory Bothacker-Mutant | -5/Garrison Mutant | -5/Factory Mutant | -5/DSF Mutant | -4/Factory Hacker-Mutant | -3/Research Hacker-Mutant | -3/Testing Resources | -11 -10 -9 -9 -9 -8 -8 -8 -8 -8 -6 -6 -6 -5 -5 -5 -5 -4 -3 -3 ----------- Run | Yrd Mat Mat Min Exi Min Mat Sto Gar Rec Fac Gar Fac Fac Gar Fac DSF Fac Res Tes Matter Collected 4533 | 200 70 103 140 . 103 112 20 575 188 63 589 705 250 282 . 3 316 669 145 Remotely . | . . . . . . . . . . . . . . . . . . . . Salvage Created 5794 | . 293 548 645 . 101 210 574 682 187 53 352 980 . 66 . . 183 639 281 Parts 294 | . 23 28 38 . 12 9 25 34 11 5 7 43 . . . . 4 34 21 Haulers Intercepted 7 | . 2 2 . . . 1 2 . . . . . . . . . . . . Recyclers Shooed 7 | . . 3 . . . . . . 1 . . 2 . . . . . 1 . Parts Field Recycled . | . . . . . . . . . . . . . . . . . . . . Retrieved Matter . | . . . . . . . . . . . . . . . . . . . . Parts Self-Destructed . | . . . . . . . . . . . . . . . . . . . . Prevented . | . . . . . . . . . . . . . . . . . . . . Kills | -11 -10 -9 -9 -9 -8 -8 -8 -8 -8 -6 -6 -6 -5 -5 -5 -5 -4 -3 -3 ------- Run | Yrd Mat Mat Min Exi Min Mat Sto Gar Rec Fac Gar Fac Fac Gar Fac DSF Fac Res Tes Combat Hostiles Destroyed 117 | . 5 15 14 . 7 2 8 15 3 1 8 19 . 2 . . 2 11 5 Melee 4 | . . . . . . . . . . . . 3 . . . . . . 1 Guns 48 | . 4 13 13 . 4 1 3 6 . . . . . . . . 2 2 . Cannons 24 | . . . . . . . . 4 3 1 4 6 . 2 . . . 2 2 AOE 27 | . 1 . 1 . 3 . 1 3 . . 4 8 . . . . . 5 1 Classes Destroyed 18 | . 5 4 1 . . 1 . 3 1 . 1 . . . . . . . 2 Worker 7 | . . 1 1 . . . . . . . . 3 . . . . . 1 1 Builder 8 | . 1 . . . . . . . 1 1 . 2 . . . . . 1 2 Tunneler 2 | . . . 1 . 1 . . . . . . . . . . . . . . Hauler 7 | . 2 2 . . . 1 2 . . . . . . . . . . . . Recycler 5 | . . 1 . . . . . . 1 . . 2 . . . . 1 . . Operator 2 | . 1 . . . . . . . . . . 1 . . . . . . . Watcher 2 | . . . . . . 1 . . . . . 1 . . . . . . . Swarmer 36 | . 3 11 3 . 7 . . . . . . 6 . . . . 2 4 . Cutter 2 | . . . . . . . . 2 . . . . . . . . . . . Saboteur 2 | . . . . . . . . . . . . . . . . . . . 2 Grunt 45 | . 2 2 9 . . . 4 8 . . 5 8 . 2 . . . 4 1 Brawler 4 | . . 1 2 . . . . . 1 . . . . . . . . . . Protector 1 | . . . . . . . . . 1 . . . . . . . . . . Researcher 1 | . . . . . . . . . . . . . . . . . . . 1 Sentry 13 | . . 1 . . . 2 4 3 1 . 1 . . . . . . 1 . Demolisher 1 | . . . . . . . . . . . 1 . . . . . . . . Hunter 6 | . . . . . . . . 1 . . 1 2 . . . . . . 2 Programmer 8 | . . . . . . . . 2 . 1 . 3 . . . . . 2 . Best Kill Streak 9 | . 4 9 6 . 4 3 2 3 1 1 3 6 . 2 . . 1 5 4 Combat Bots Only 9 | . 3 9 5 . 4 1 2 3 1 1 3 3 . 2 . . 1 4 2 Max Kills in Single Turn 3 | . 3 1 2 . 3 1 1 2 1 1 2 3 . 1 . . 1 3 2 Gunslinging 1 | . . . 1 . . . . 1 . . . . . . . . . . . Exploded 3 | . 1 . 1 . 3 . 1 2 . . 2 2 . . . . . 2 1 Melee 1 | . . . . . . . . . . . . 1 . . . . . . 1 Uniques/NPCs Destroyed . | . . . . . . . . . . . . . . . . . . . . Combat | -11 -10 -9 -9 -9 -8 -8 -8 -8 -8 -6 -6 -6 -5 -5 -5 -5 -4 -3 -3 -------- Run | Yrd Mat Mat Min Exi Min Mat Sto Gar Rec Fac Gar Fac Fac Gar Fac DSF Fac Res Tes Hostile Shots Fired 1248 | . 22 65 51 . 21 14 56 70 4 1 91 198 18 111 . 11 199 67 249 Missed 438 | . 10 11 13 . 5 3 21 30 . . 30 72 10 35 . 6 83 26 83 Hits 810 | . 12 54 38 . 16 11 35 40 4 1 61 126 8 76 . 5 116 41 166 Melee 23 | . . 3 2 . . . . 3 . . 1 . . . . 3 . . 11 Projectile 787 | . 12 51 36 . 16 11 35 37 4 1 60 126 8 76 . 2 116 41 155 AOE 12 | . . . . . . . . . 2 . 5 . . . . 2 3 . . Critical Strikes 41 | . . 3 2 . . . 1 4 1 1 1 8 1 4 . 3 3 . 9 Actively Blocked 2 | . . . . . . . . . . . . . . 2 . . . . . Damage Taken 14999 | . 158 517 515 . 128 165 532 713 106 15 1291 2428 179 1226 . 306 2560 926 3234 Core 3704 | . 29 50 133 . 36 18 71 77 14 . 255 564 93 625 . 250 1044 163 282 Absorbed by Shields 334 | . . . . . . . . . . 5 264 . . 65 . . . . . Redirected to Shielding 107 | . . . . . . . . . . . . . . 107 . . . . . Regen/Repaired (Parts) 200 | . . . . . . . . . . . . 76 49 . . . 35 40 . Core Remaining (%) 45 | 100 88 . . . 45 . . . 67 . . 3 . . . 3 9 . . Volleys Fired 418 | . 18 41 29 . 7 12 37 55 11 2 54 47 11 17 . . 23 34 20 Largest 2 | . 2 2 2 . 2 2 2 2 2 2 2 2 2 2 . . 2 2 2 Hottest 167 | . 80 112 112 . 101 110 110 110 74 74 74 150 80 80 . . 60 148 167 Shots Fired 747 | . 35 82 57 . 14 24 71 106 23 5 104 62 13 24 . . 37 57 33 Gun 441 | . 35 82 57 . 12 24 71 85 . . . . . 2 . . 37 31 5 Cannon 260 | . . . . . . . . 19 23 5 99 50 4 14 . . . 21 25 Launcher 28 | . . . . . 2 . . 2 . . 5 10 . 1 . . . 5 3 Special 18 | . . . . . . . . . . . . 2 9 7 . . . . . Kinetic 238 | . . . . . . . . 19 23 5 99 . 4 16 . . 11 46 15 Thermal 138 | . . 79 11 . 7 . . . . . . . . . . . 20 6 15 Explosive 20 | . . . . . 2 . . 2 . . 5 10 . 1 . . . . . Electromagnetic 333 | . 35 3 46 . 5 24 71 85 . . . 50 . . . . 6 5 3 Robot Hit Streak 26 | . 4 11 15 . 3 7 11 13 5 3 20 8 3 16 . . 4 26 6 Robot Miss Streak 5 | . 5 4 2 . 2 2 3 2 3 1 4 3 1 1 . . 5 3 4 Penetration Max . | . . . . . . . . . . . . . . . . . . . . Secondary Targets 12 | . 3 1 5 . 1 . 1 1 . . . . . . . . . . . Max Gunslinging Chain 1 | . 1 1 1 . 1 . 1 1 . . . . . . . . . . . Shots Hit Robots 475 | . 21 48 43 . 7 14 52 47 13 2 70 53 6 18 . . 20 43 18 Core Hits 244 | . 14 22 24 . 7 5 12 22 6 2 30 46 . 4 . . 8 29 13 Critical Kills . | . . . . . . . . . . . . . . . . . . . . Critical Parts Destroyed 1 | . . . . . . . . . . . . . . . . . . 1 . Critical Strikes 21 | . 1 4 4 . . 1 3 . 1 . 4 . . 1 . . . 1 1 Burn 6 | . . 4 2 . . . . . . . . . . . . . . . . Destroy 1 | . . . . . . . . . . . . . . . . . . 1 . Blast 7 | . . . . . . . . . 1 . 4 . . 1 . . . . 1 Corrupt 7 | . 1 . 2 . . 1 3 . . . . . . . . . . . . Melee Attacks 34 | . . . . . . . . 7 . . 12 15 . . . . . . . Impact . | . . . . . . . . . . . . . . . . . . . . Slashing . | . . . . . . . . . . . . . . . . . . . . Piercing . | . . . . . . . . . . . . . . . . . . . . Sneak Attacks 7 | . . . . . . . . . . . . 7 . . . . . . . Combat Hostiles 1 | . . . . . . . . . . . . 1 . . . . . . . Follow-up Attacks . | . . . . . . . . . . . . . . . . . . . . Damage Inflicted 14828 | . 391 723 894 . 288 260 1080 1431 323 53 1731 3645 1 341 . . 407 2245 1015 Guns 4809 | . 287 719 697 . 110 260 1006 656 . . . . . . . . 324 651 99 Cannons 4394 | . . . . . . . . 274 297 53 1062 1157 . 281 . . . 735 535 Explosions 5401 | . 88 . 178 . 169 . 73 501 . . 669 2444 . 60 . . . 859 360 Melee . | . . . . . . . . . . . . . . . . . . . . Ramming 224 | . 16 4 19 . 9 . 1 . 26 . . 44 1 . . . 83 . 21 Kinetic 3718 | . . . . . . . . 274 297 53 1062 . . 281 . . 104 1301 346 Thermal 2060 | . 88 696 322 . 58 . 73 108 . . . 176 . . . . 89 162 288 Explosive 3559 | . . . . . 169 . . 393 . . 669 2268 . 60 . . . . . Electromagnetic 5267 | . 287 23 553 . 52 260 1006 656 . . . 1157 . . . . 131 782 360 Impact . | . . . . . . . . . . . . . . . . . . . . Slashing . | . . . . . . . . . . . . . . . . . . . . Piercing . | . . . . . . . . . . . . . . . . . . . . Highest Corruption 30 | . 2 . 1 1 1 . . 14 14 3 3 9 1 1 1 1 4 7 30 Average Corruption 5 | . 2 . 1 1 1 . . 11 14 3 3 7 1 1 1 1 3 4 11 Corruption Purged 2 | . . . . . . . . . . . . 2 . . . . . . . Corruption Blocked . | . . . . . . . . . . . . . . . . . . . . Effects 140 | . . . 4 6 2 . . 11 33 7 9 42 1 5 . . 1 6 13 Message Errors 42 | . . . 2 2 1 . . 3 7 2 2 14 . . . . 1 4 4 Matter Fused 31 | . . . . 2 . . . 3 9 1 2 10 . 3 . . . . 1 Heat Flow Errors 16 | . . . 2 . . . . 2 3 2 . 5 . 2 . . . . . Energy Discharges 14 | . . . . 1 1 . . 1 4 1 1 2 . . . . . . 3 Parts Rejected 1 | . . . . . . . . . . . . 1 . . . . . . . Data Loss (minor) 16 | . . . . 1 . . . 1 6 . 2 5 1 . . . . . . Data Loss (major) 5 | . . . . . . . . . 1 . . 2 . . . . . 1 1 Misfires 7 | . . . . . . . . . 2 1 1 1 . . . . . . 2 Alerts 2 | . . . . . . . . . . . 1 1 . . . . . . . Misdirections 1 | . . . . . . . . . . . . . . . . . . . 1 Weapon Failures 5 | . . . . . . . . 1 1 . . 1 . . . . . 1 1 Overload Shots . | . . . . . . . . . . . . . . . . . . . . Overflow Damage 375 | . . . . . 17 . . 18 2 . 50 129 . . . . 11 124 24 Projectiles 159 | . . . . . . . . 4 2 . . 8 . . . . . 121 24 Explosions 205 | . . . . . 17 . . 14 . . 50 121 . . . . . 3 . Melee 11 | . . . . . . . . . . . . . . . . . 11 . . Knockbacks 27 | . . . . . . . . 5 3 . 9 . . 1 . . 1 5 3 Impact 1 | . . . . . . . . . . . . . . . . . 1 . . Kinetic 23 | . . . . . . . . 3 3 . 9 . . 1 . . . 5 2 Secondary 3 | . . . . . . . . 2 . . . . . . . . . . 1 Self-Inflicted Damage 747 | . 37 . 37 . . . . 45 . . 341 162 . . . . 41 44 40 Shots 18 | . 1 . 1 . . . . 2 . . 5 4 . . . . . 3 2 Rammed 48 | . . 3 2 . 2 . . . . . . 30 1 . . . 3 . 7 Targets Rammed 56 | . 2 3 2 . 2 . 1 . 2 . . 33 1 . . . 3 . 7 Kicked 5 | . 2 . . . . . 1 . 2 . . . . . . . . . . Crushed 3 | . . . . . . . . . . . . 3 . . . . . . . Highest Temperature 450 | . 108 126 346 . . 18 121 198 208 262 10 217 5 184 450 . 232 108 144 Average Temperature 61 | . 47 43 70 . . 11 26 43 43 112 4 79 4 44 226 . 105 26 49 Received Heat Transfer 2459 | . 39 72 249 . . 36 198 207 27 20 254 585 72 81 . . 81 126 412 Effects 2 | . . . 2 . . . . . . . . . . . . . . . . Shutdowns 1 | . . . 1 . . . . . . . . . . . . . . . . Energy Bleed 1 | . . . 1 . . . . . . . . . . . . . . . . Siege Activations . | . . . . . . . . . . . . . . . . . . . . Martial Activations . | . . . . . . . . . . . . . . . . . . . . Shielding Activations . | . . . . . . . . . . . . . . . . . . . . Robots Disrupted 1 | . . . . . . . . 1 . . . . . . . . . . . Combat Hostiles 1 | . . . . . . . . 1 . . . . . . . . . . . Robots Corrupted 14 | . . . . . . 1 4 2 . . . 2 . . . . 1 2 2 Combat Hostiles 12 | . . . . . . 1 4 2 . . . 2 . . . . . 2 1 Parts Fried 36 | . 2 . . . . 5 8 2 . . . 10 . . . . 1 4 4 Impact Corruptions 2 | . . . . . . . . . . . . . . . . . 1 . 1 Robots Melted 2 | . . 2 . . . . . . . . . . . . . . . . . Combat Hostiles 2 | . . 2 . . . . . . . . . . . . . . . . . Parts Melted 8 | . . 4 2 . . . . 2 . . . . . . . . . . . Heat Transferred 4315 | . 150 2072 768 . 148 . 50 150 . . . 100 . . . . 370 211 296 Parts Sabotaged 1 | . . . . . . . . . . . . . . . . . . . 1 Parts Stolen . | . . . . . . . . . . . . . . . . . . . . Parts Stripped . | . . . . . . . . . . . . . . . . . . . . Power Chain Reactions 14 | . 3 . 3 . . . 2 2 . . . 2 . . . . . 2 . Alert | -11 -10 -9 -9 -9 -8 -8 -8 -8 -8 -6 -6 -6 -5 -5 -5 -5 -4 -3 -3 ------- Run | Yrd Mat Mat Min Exi Min Mat Sto Gar Rec Fac Gar Fac Fac Gar Fac DSF Fac Res Tes Maximum Alert Level 5 | . . 1 1 . . . . 3 1 1 1 2 . 1 . . . 1 5 Low Security (%) 67 | . 100 53 89 . 100 100 100 28 85 85 59 29 100 72 100 100 100 53 . Level 1 23 | . . 46 10 . . . . 32 14 14 40 60 . 27 . . . 46 . Level 2 5 | . . . . . . . . 26 . . . 9 . . . . . . . Level 3 1 | . . . . . . . . 13 . . . . . . . . . . . Level 4 . | . . . . . . . . . . . . . . . . . . . . Level 5 . | . . . . . . . . . . . . . . . . . . . . High Security . | . . . . . . . . . . . . . . . . . . . . Max Security 2 | . . . . . . . . . . . . . . . . . . . 99 Peak Influence 1842 | . 75 286 232 . 161 54 97 785 375 373 356 464 126 270 107 39 47 288 1842 Initial 373 | . . . 111 . . 54 10 47 352 373 14 165 126 59 107 39 17 13 148 Average 202 | . 19 161 135 . 38 23 54 379 149 160 167 242 82 167 82 31 13 161 1690 Influence Increases 6169 | . 186 426 367 . 191 96 267 888 223 394 483 1009 129 326 . 15 368 489 312 Destroy 0b10 Robot/C 2640 | . 100 300 280 . 140 40 160 360 80 20 160 540 . 80 . . 40 220 120 Destroy 0b10 Robot/NC 195 | . 20 20 15 . 5 10 10 . 15 5 15 50 . . . . 5 10 15 Destroy Leader 458 | . 24 54 50 . 20 24 44 20 . 10 . 122 . 10 . . 10 40 30 Allied During Kill 53 | . . . 8 . . . . 24 3 4 2 8 . 4 . . . . . Trap Triggered on 0b10 140 | . . 20 . . . . . . . . 30 . 10 40 . . 20 20 . Successful Hack 165 | . 36 14 . . . 7 10 28 13 5 . . 12 . . . 13 27 . Select Force Hacks 60 | . . . . . . . . . 60 . . . . . . . . . . Disable Machine 240 | . . . . . 15 15 . . 30 . 60 60 . . . . 15 15 30 Anti-Garrison Action 600 | . . . . . . . . 350 . . 100 . . 150 . . . . . Destroy Structure 443 | . 6 3 14 . 11 . 13 106 7 . 101 94 2 42 . . 10 22 12 Advance Influence 350 | . . . . . . . . . . 350 . . . . . . . . . Partial Spotted 30 | . . . . . . . . . . . . 15 . . . . 15 . . Lose Combat Pursuer 795 | . . 15 . . . . 30 . 15 . 15 120 105 . . 15 240 135 105 Influence Decreases 5799 | . 186 140 621 32 50 211 220 176 951 430 187 1068 302 206 148 38 375 252 206 Entered New Map 1383 | . . . 175 32 . 87 16 26 433 34 7 152 132 26 98 18 17 14 116 Time Decay 2716 | . 176 140 416 . 50 124 174 . 318 206 . 506 160 . 50 . 208 188 . Lost Part 790 | . 10 . 30 . . . 30 50 10 . 100 140 10 100 . 20 150 50 90 Lost Ally 460 | . . . . . . . . 100 40 40 80 120 . 80 . . . . . Purge Threat 450 | . . . . . . . . . 150 150 . 150 . . . . . . . Squads Dispatched 48 | . . 1 . . . . 1 . . 2 . 12 4 . 1 1 8 3 15 Investigation 14 | . . . . . . . 1 . . 1 . 2 4 . 1 . 3 2 . Extermination 8 | . . . . . . . . . . 1 . 5 . . . . 1 1 . Reinforcement 14 | . . 1 . . . . . . . . . 5 . . . 1 4 . 3 Assault 12 | . . . . . . . . . . . . . . . . . . . 12 Garrison . | . . . . . . . . . . . . . . . . . . . . Intercept . | . . . . . . . . . . . . . . . . . . . . Searches Triggered . | . . . . . . . . . . . . . . . . . . . . Construction Impeded 4 | . . . . . . . . . . . . 2 . . . . 1 . 1 Haulers Reinforced 1 | . . . . . . . . . . . . 1 . . . . . . . Active Scanning Responses . | . . . . . . . . . . . . . . . . . . . . Cargo Convoy Interrupts . | . . . . . . . . . . . . . . . . . . . . Stealth | -11 -10 -9 -9 -9 -8 -8 -8 -8 -8 -6 -6 -6 -5 -5 -5 -5 -4 -3 -3 --------- Run | Yrd Mat Mat Min Exi Min Mat Sto Gar Rec Fac Gar Fac Fac Gar Fac DSF Fac Res Tes Distress Signals 11 | . . . . . . 1 2 . . . . 4 1 . . . 1 1 1 Communications Jammed . | . . . . . . . . . . . . . . . . . . . . Distress Signals . | . . . . . . . . . . . . . . . . . . . . Times Spotted 299 | . 10 16 14 . 7 5 14 21 4 2 19 39 22 12 . 4 42 23 45 Peak Tracking Total 30 | . 4 4 6 . 4 3 4 3 2 2 5 4 11 4 . 3 16 9 30 Tactical Retreats 35 | . . 1 . . . . 1 . 1 . 1 8 3 . . 1 10 4 5 Traps | -11 -10 -9 -9 -9 -8 -8 -8 -8 -8 -6 -6 -6 -5 -5 -5 -5 -4 -3 -3 ------- Run | Yrd Mat Mat Min Exi Min Mat Sto Gar Rec Fac Gar Fac Fac Gar Fac DSF Fac Res Tes Traps Triggered 21 | . . . . . . 1 . 2 . . 2 4 2 4 3 1 2 . . Indirectly . | . . . . . . . . . . . . . . . . . . . . Trap Hack Attempts . | . . . . . . . . . . . . . . . . . . . . Triggered . | . . . . . . . . . . . . . . . . . . . . Disarmed . | . . . . . . . . . . . . . . . . . . . . Reprogrammed 6 | . . 6 . . . . . . . . . . . . . . . . . Reused 14 | . . 2 . . . . . . . . 3 . 1 4 . . 2 2 . Traps Reconfigurated 71 | . . . . . . 1 . 15 . . 5 3 13 10 . 2 7 15 . Traps Extracted . | . . . . . . . . . . . . . . . . . . . . Installed . | . . . . . . . . . . . . . . . . . . . . Triggered 14 | . . 2 . . . . . . . . 3 . 1 4 . . 2 2 . Machines | -11 -10 -9 -9 -9 -8 -8 -8 -8 -8 -6 -6 -6 -5 -5 -5 -5 -4 -3 -3 ---------- Run | Yrd Mat Mat Min Exi Min Mat Sto Gar Rec Fac Gar Fac Fac Gar Fac DSF Fac Res Tes Machines Disabled 28 | . . . . . 1 1 . 7 2 . 6 4 . 2 . . 1 1 3 Max in Single Turn 2 | . . . . . 1 1 . 1 1 . 2 2 . 1 . . 1 1 1 Garrison Access 2 | . . . . . . . . . . . . 2 . . . . . . . Garrison Relay 5 | . . . . . . . . 3 . . . . . 2 . . . . . Phase Generator 2 | . . . . . . . . 1 . . 1 . . . . . . . . Machines Repaired . | . . . . . . . . . . . . . . . . . . . . Machines Dismantled . | . . . . . . . . . . . . . . . . . . . . Machines Sabotaged . | . . . . . . . . . . . . . . . . . . . . Overloaded Fab Kills . | . . . . . . . . . . . . . . . . . . . . Hacking | -11 -10 -9 -9 -9 -8 -8 -8 -8 -8 -6 -6 -6 -5 -5 -5 -5 -4 -3 -3 --------- Run | Yrd Mat Mat Min Exi Min Mat Sto Gar Rec Fac Gar Fac Fac Gar Fac DSF Fac Res Tes Machines Accessed 63 | . 6 2 1 2 . 1 4 3 9 3 1 9 7 1 2 . 6 6 . Terminals 36 | . 5 2 1 . . 1 3 3 6 1 1 3 3 1 1 . 2 3 . Fabricators 4 | . . . . . . . . . . 1 . 1 1 . . . 1 . . Repair Stations 5 | . . . . . . . . . . . . 1 1 . . . 1 2 . Recycling Units 11 | . 1 . . . . . . . 3 . . 2 1 . 1 . 2 1 . Scanalyzers . | . . . . . . . . . . . . . . . . . . . . Garrison Access 5 | . . . . . . . 1 . . 1 . 2 1 . . . . . . Total Hacks 180 | . 31 4 3 2 . 4 12 9 26 9 2 20 13 2 4 . 24 15 . Successful 84 | . 17 3 2 2 . 2 5 3 11 4 . 8 5 . 1 . 14 7 . Failed 96 | . 14 1 1 . . 2 7 6 15 5 2 12 8 2 3 . 10 8 . Catastrophic 21 | . 2 1 1 . . . . 2 2 1 1 2 2 2 . . 2 3 . Database Lockouts . | . . . . . . . . . . . . . . . . . . . . Manual 54 | . 16 . 3 1 . 1 2 5 4 4 . 2 5 . . . 6 5 . Terminals 114 | . 28 4 3 . . 4 10 9 17 4 2 8 7 2 1 . 6 9 . Fabricators 8 | . . . . . . . . . . 3 . 2 1 . . . 2 . . Repair Stations 10 | . . . . . . . . . . . . 2 1 . . . 3 4 . Recycling Units 38 | . 3 . . . . . . . 9 . . 5 3 . 3 . 13 2 . Scanalyzers . | . . . . . . . . . . . . . . . . . . . . Garrison Access 8 | . . . . . . . 2 . . 2 . 3 1 . . . . . . Terminal Hacks 41 | . 11 3 2 2 . 2 4 2 5 2 . . 1 . 1 . 1 5 . Record 1 | . . . . 1 . . . . . . . . . . . . . . . Part Schematic 1 | . . . . . . . . . 1 . . . . . . . . . . Robot Schematic 1 | . . . . . . . . . 1 . . . . . . . . . . Robot Analysis 2 | . . . . . . . 2 . . . . . . . . . . . . Prototype ID Bank 6 | . 2 . 1 . . . . . 1 1 . . . . . . . 1 . Open Door 3 | . . . . . . . 2 1 . . . . . . . . . . . Open DSF 1 | . . . . . . . . . . . . . . . 1 . . . . Branch Access Points 1 | . 1 . . . . . . . . . . . . . . . . . . Alert Level 3 | . . . 1 . . 1 . . 1 . . . . . . . . . . Unreport Threat 2 | . . . . . . . . . 1 1 . . . . . . . . . Locate Traps 8 | . 3 2 . . . . . . . . . . 1 . . . . 2 . Reprogram Traps 1 | . . 1 . . . . . . . . . . . . . . . . . Security Status 1 | . . . . . . 1 . . . . . . . . . . . . . Transport Status 1 | . 1 . . . . . . . . . . . . . . . . . . Reinforcement Status 1 | . . . . . . . . . . . . . . . . . 1 . . Recall Investigation 1 | . . . . . . . . . . . . . . . . . . 1 . Hauler Manifests 1 | . 1 . . . . . . . . . . . . . . . . . . Registered Components 1 | . . . . . . . . . . . . . . . . . . 1 . Zone Layout 3 | . 3 . . . . . . . . . . . . . . . . . . Garrison Registry 1 | . . . . . . . . 1 . . . . . . . . . . . Proto ID Catalog 1 | . . . . 1 . . . . . . . . . . . . . . . Fabricator Hacks 1 | . . . . . . . . . . . . 1 . . . . . . . Network Status 1 | . . . . . . . . . . . . 1 . . . . . . . Repair Station Hacks 2 | . . . . . . . . . . . . . . . . . 2 . . Refit 2 | . . . . . . . . . . . . . . . . . 2 . . Recycling Unit Hacks 21 | . 3 . . . . . . . 3 . . 3 2 . . . 9 1 . Recycle Component 2 | . . . . . . . . . . . . . . . . . 2 . . Process 5 | . . . . . . . . . . . . 1 . . . . 4 . . Report Inventory 6 | . 1 . . . . . . . 2 . . 1 1 . . . . 1 . Retrieve Matter 5 | . 1 . . . . . . . . . . 1 . . . . 3 . . Retrieve Components 3 | . 1 . . . . . . . 1 . . . 1 . . . . . . Scanalyzer . | . . . . . . . . . . . . . . . . . . . . Garrison Access Hacks 6 | . . . . . . . 1 . . 1 . 3 1 . . . . . . Unlock Access 3 | . . . . . . . 1 . . 1 . . 1 . . . . . . Seal Access 2 | . . . . . . . . . . . . 2 . . . . . . . Coupler Status 1 | . . . . . . . . . . . . 1 . . . . . . . Unauthorized Hacks 13 | . 3 . . . . . . 1 3 1 . 1 1 . . . 2 1 . Terminals 7 | . 3 . . . . . . 1 1 1 . . . . . . 1 . . Track 1 | . . . . . . . . 1 . . . . . . . . . . . Botnet 5 | . 3 . . . . . . . . 1 . . . . . . 1 . . Sabotage 1 | . . . . . . . . . 1 . . . . . . . . . . Fabricators . | . . . . . . . . . . . . . . . . . . . . Repair Stations 4 | . . . . . . . . . . . . 1 1 . . . 1 1 . Patch 4 | . . . . . . . . . . . . 1 1 . . . 1 1 . Recycling Units 2 | . . . . . . . . . 2 . . . . . . . . . . Tunnel 2 | . . . . . . . . . 2 . . . . . . . . . . Scanalyzers . | . . . . . . . . . . . . . . . . . . . . Garrison Access . | . . . . . . . . . . . . . . . . . . . . Data Cores Recovered 1 | . 1 . . . . . . . . . . . . . . . . . . Used . | . . . . . . . . . . . . . . . . . . . . Hacking Detections 50 | . 5 2 1 . . 1 2 2 6 3 1 7 6 1 2 . 5 6 . Full Trace Events 20 | . 3 . 1 . . . 1 1 4 1 1 1 2 1 1 . 2 1 . Feedback Events 1 | . . . . . . . . . . . . . 1 . . . . . . Hackware Fried 1 | . . . . . . . . . . . . . 1 . . . . . . Feedback Blocked . | . . . . . . . . . . . . . . . . . . . . Robot Schematics Acquired 1 | . . . . . . . . . 1 . . . . . . . . . . Robots Built . | . . . . . . . . . . . . . . . . . . . . Authchips . | . . . . . . . . . . . . . . . . . . . . Time . | . . . . . . . . . . . . . . . . . . . . Total Robot Build Rating . | . . . . . . . . . . . . . . . . . . . . Part Schematics Acquired 2 | . . . . . . . . . 1 . . . . . . . . . 1 Parts Built . | . . . . . . . . . . . . . . . . . . . . Authchips . | . . . . . . . . . . . . . . . . . . . . Time . | . . . . . . . . . . . . . . . . . . . . Total Part Build Rating . | . . . . . . . . . . . . . . . . . . . . Parts Repaired . | . . . . . . . . . . . . . . . . . . . . Time . | . . . . . . . . . . . . . . . . . . . . Parts Recycled 2 | . . . . . . . . . . . . . . . . . 2 . . Recycled Matter 139 | . . . . . . . . . . . . 22 . . . . 117 . . Retrieved Matter 57 | . . . . . . . . . . . . 22 . . . . 35 . . Retrieved Components 7 | . 1 . . . . . . . 3 . . . 3 . . . . . . Parts Scanalyzed . | . . . . . . . . . . . . . . . . . . . . Part Schematics Acquired . | . . . . . . . . . . . . . . . . . . . . Parts Damaged . | . . . . . . . . . . . . . . . . . . . . Bothacking | -11 -10 -9 -9 -9 -8 -8 -8 -8 -8 -6 -6 -6 -5 -5 -5 -5 -4 -3 -3 ------------ Run | Yrd Mat Mat Min Exi Min Mat Sto Gar Rec Fac Gar Fac Fac Gar Fac DSF Fac Res Tes Used RIF Installer 2 | . . . . . . . . 2 . . . . . . . . . . . Watcher Feeds 1 | . . . . . . . . 1 . . . . . . . . . . . Robots Hacked 37 | . . . . . . . . 5 . . 9 13 5 5 . . . . . Non-combat 5 | . . . . . . . . . . . . 5 . . . . . . . Combat 32 | . . . . . . . . 5 . . 9 8 5 5 . . . . . Robot Hacks Applied 39 | . . . . . . . . 5 . . 9 14 6 5 . . . . . parse_system 4 | . . . . . . . . . . . 3 1 . . . . . . . generate_anomaly 1 | . . . . . . . . . . . . 1 . . . . . . . start_evac 1 | . . . . . . . . . . . . 1 . . . . . . . ignore_repairs 1 | . . . . . . . . . . . . 1 . . . . . . . map_walls 1 | . . . . . . . . . . . . 1 . . . . . . . ignore_parts 1 | . . . . . . . . . . . . 1 . . . . . . . purge_threat 1 | . . . . . . . . . . . . 1 . . . . . . . scatter_targeting 2 | . . . . . . . . 1 . . . . 1 . . . . . . amplify_resonance 1 | . . . . . . . . . . . . . . 1 . . . . . reboot_system 6 | . . . . . . . . . . . 2 . 4 . . . . . . overwrite_iff 6 | . . . . . . . . 2 . . . 1 1 2 . . . . . formatsys_high 14 | . . . . . . . . 2 . . 4 6 . 2 . . . . . Relay Couplers Released 19 | . . . . . . . . 12 . . . . . 7 . . . . . Machine Destruction 19 | . . . . . . . . 12 . . . . . 7 . . . . . Attached 21 | . . . . . . . . 8 . . 4 2 . 7 . . . . . Fabnet Peak Effective % . | . . . . . . . . . . . . . . . . . . . . Robots Rewired 5 | . . . . . . . . 2 3 . . . . . . . . . . Allies Hacked 1 | . . . . . . . . 1 . . . . . . . . . . . Hacks Repelled . | . . . . . . . . . . . . . . . . . . . . Allies | -11 -10 -9 -9 -9 -8 -8 -8 -8 -8 -6 -6 -6 -5 -5 -5 -5 -4 -3 -3 -------- Run | Yrd Mat Mat Min Exi Min Mat Sto Gar Rec Fac Gar Fac Fac Gar Fac DSF Fac Res Tes Total Allies 29 | . . . 2 . . . . 8 3 . 4 7 1 4 . . . . . Largest Group 4 | . . . 2 2 . . . 4 3 2 1 3 1 2 . . . . . Highest-Rated Group 109 | . . . 42 42 . . . 109 42 32 41 90 30 98 . . . . . Highest-Rated Ally 49 | . . . 31 31 . . . 40 39 16 41 32 30 49 . . . . . Total Orders 2 | . . . . . . . . . . . . 2 . . . . . . . STAY 1 | . . . . . . . . . . . . 1 . . . . . . . FOLLOW 1 | . . . . . . . . . . . . 1 . . . . . . . Ally Attacks 126 | . . . 1 . . . . 32 14 4 9 48 1 17 . . . . . Total Damage 2164 | . . . 20 . . . . 472 181 36 339 728 33 355 . . . . . Kills 17 | . . . . . . . . 4 2 . . 9 . 2 . . . . . Allies Corrupted 2 | . . . . . . . . 1 1 . . . . . . . . . . Allies Melted . | . . . . . . . . . . . . . . . . . . . . Intel | -11 -10 -9 -9 -9 -8 -8 -8 -8 -8 -6 -6 -6 -5 -5 -5 -5 -4 -3 -3 ------- Run | Yrd Mat Mat Min Exi Min Mat Sto Gar Rec Fac Gar Fac Fac Gar Fac DSF Fac Res Tes Active Infowar (turns) 3950 | . 333 315 175 . . 192 404 . . . . 314 334 309 116 76 651 499 232 Optics 2531 | . . . . . . . . . . . . 314 334 309 116 76 651 499 232 Terrain 596 | . . . . . . 192 404 . . . . . . . . . . . . Structural 823 | . 333 315 175 . . . . . . . . . . . . . . . . Jamming 4 | . . . . . . . . . . . . . 4 . . . . . . ECM 2 | . . . . . . . . . . . . . . . . . . 2 . Robot Analysis Total 2 | . . . . . . . 2 . . . . . . . . . . . . Derelict Logs Recovered 1 | . . . 1 . . . . . . . . . . . . . . . . Drone Launches . | . . . . . . . . . . . . . . . . . . . . Drone Recoveries . | . . . . . . . . . . . . . . . . . . . . Exploration | -11 -10 -9 -9 -9 -8 -8 -8 -8 -8 -6 -6 -6 -5 -5 -5 -5 -4 -3 -3 ------------- Run | Yrd Mat Mat Min Exi Min Mat Sto Gar Rec Fac Gar Fac Fac Gar Fac DSF Fac Res Tes Turns Passed 10122 | . 483 315 1014 611 350 298 444 1380 706 424 505 1375 334 309 116 76 651 499 232 Spaces Moved 7704 | 1 304 99 556 380 195 144 240 874 527 272 288 1254 596 262 178 60 822 562 90 Core 1644 | . . . . . . . . . . . 19 944 143 142 176 60 160 . . Treads 1806 | . 92 99 556 380 195 75 . . . . . 248 . . 2 . . 69 90 Legs 2467 | 1 212 . . . . 69 240 874 527 272 269 3 . . . . . . . Wheels . | . . . . . . . . . . . . . . . . . . . . Hover 648 | . . . . . . . . . . . . 59 453 120 . . 16 . . Flight 1139 | . . . . . . . . . . . . . . . . . 646 493 . Fastest Speed 11 | 120 120 160 160 160 160 120 120 120 120 100 50 50 40 40 50 50 11 24 160 Average Speed 95 | 120 132 160 160 160 160 141 120 121 120 146 97 74 42 45 53 53 36 49 160 Slowest Speed 385 | 120 160 160 160 160 160 190 120 190 120 190 200 250 50 100 250 250 112 385 160 Overloaded Moves 57 | . . . . . . . . . . . . . . . . . 43 14 . Propulsion Burnouts . | . . . . . . . . . . . . . . . . . . . . Robots Hopped 21 | . . . . . . . . . . . . . . . . . 8 13 . Potential Cave-ins . | . . . . . . . . . . . . . . . . . . . . Cave-ins Triggered 1 | . . . . . . . . . . . . . . . . . . . 1 Exploration Rate (%) 39 | 2 65 23 86 67 51 13 26 74 82 8 45 35 21 37 5 76 27 26 13 Regions Visited 19 Branch Regions 6 Pre-discovered Areas 3 | . . . . 1 . . . . 2 . . . . . . . . . . Known Exits Taken 4 | . . . . . . . 1 . . 1 . . 1 . 1 . . . . Unknown Exits Taken 11 | 1 1 1 1 1 1 1 . . 1 . . 1 . . . . 1 1 . Scrap Searched 3 | . . . 2 . 1 . . . . . . . . . . . . . . Spaces Dug 1 | . . . . . . . . . . . . . 1 . . . . . . Terrain Destroyed 442 | . 6 . 15 . 15 . 12 91 3 . 160 100 1 14 . . 5 13 7 Melee . | . . . . . . . . . . . . . . . . . . . . Projectile 24 | . . . . . . . . . 3 . 1 . 1 . . . 5 7 7 AOE 418 | . 6 . 15 . 15 . 12 91 . . 159 100 . 14 . . . 6 . Terrain Rammed . | . . . . . . . . . . . . . . . . . . . . Walls Destroyed . | . . . . . . . . . . . . . . . . . . . . Machines Disabled . | . . . . . . . . . . . . . . . . . . . . Actions | -11 -10 -9 -9 -9 -8 -8 -8 -8 -8 -6 -6 -6 -5 -5 -5 -5 -4 -3 -3 --------- Run | Yrd Mat Mat Min Exi Min Mat Sto Gar Rec Fac Gar Fac Fac Gar Fac DSF Fac Res Tes Total 9613 | . 349 179 623 387 215 217 323 1081 577 290 398 1610 670 429 195 103 1125 706 136 Wait 829 | . 6 9 9 . 2 37 39 48 1 7 18 194 20 75 7 26 256 70 5 Move 7644 | . 303 98 555 379 194 143 239 873 526 271 287 1253 595 261 177 59 805 536 90 Hop 20 | . . . . . . . . . . . . . . . . . 8 12 . Pick Up 78 | . 5 8 5 1 3 6 2 17 . . . 10 8 1 . 1 5 5 1 Fast Attach 111 | . 4 2 3 . . 5 . 12 . 6 . 20 8 6 8 . 11 21 5 Attach 62 | . 4 1 2 . 2 2 2 4 . . 4 14 . 7 1 1 6 10 2 Detach 32 | . 1 . . 2 . . . 1 . . 1 8 . 6 1 1 3 8 . Swap 104 | . 3 5 9 1 5 4 3 26 2 2 11 7 10 6 . . 2 2 6 Drop 93 | . 3 12 9 4 . 8 . 20 . 2 2 3 16 2 1 . 3 8 . Fire 418 | . 18 41 29 . 7 12 37 55 11 2 54 47 11 17 . . 23 34 20 Melee 34 | . . . . . . . . 7 . . 12 15 . . . . . . . Ram 8 | . . . . . . . . . . . . 4 1 . . . 3 . . Kick 5 | . 2 . . . . . 1 . 2 . . . . . . . . . . Crush 43 | . . 3 2 . 2 . . . . . . 29 . . . . . . 7 Escape Stasis 68 | . . . . . . . . . . . 5 . . 48 . 15 . . . Rewire 64 | . . . . . . . . 18 35 . 4 6 1 . . . . . . Trap . | . . . . . . . . . . . . . . . . . . . . Miscellaneous . | . . . . . . . . . . . . . . . . . . . . Route ------- -11/Scrapyard -10/Materials (discovered 3 exits: *Mat x2 / *Min) -9/Materials -9/Mines (discovered 3 exits: *Mat x2 / *Exi) -9/Exiles -8/Mines -8/Materials (discovered 2 exits: Fac / *Sto) -8/Storage -8/Garrison (discovered 3 exits: *Rec x3) -8/Recycling -6/Factory -6/Garrison -6/Factory (discovered 2 exits: *Fac x2) -5/Factory (discovered 2 exits: [*Upp] / Gar) -5/Garrison -5/Factory -5/DSF -4/Factory -3/Research -3/Testing History --------- Turn | Location | Event 1 | -11/Scrapyard | Discovered new exit (range 0) 1 | -11/Scrapyard | Entered Materials 97 | -10/Materials | Identified exit to Mines 163 | -10/Materials | Discovered new exit (range 9) 318 | -10/Materials | Build established: Mutant 451 | -10/Materials | Discovered new exit (range 10) 484 | -10/Materials | Entered another Materials area 484 | -9/Materials | Evolved 2 slots: Utility x2 681 | -9/Materials | Destroyed 9 combat bots 752 | -9/Materials | Discovered new exit (range 13) 799 | -9/Materials | Entered Mines 1106 | -9/Mines | Discovered new exit (range 14) 1135 | -9/Mines | Learned 4 Materials zone layouts 1292 | -9/Mines | Discovered new exit (range 12) 1502 | -9/Mines | Found a Scrap Suit stashed away for nefarious purposes 1803 | -9/Mines | Deemed a non-threat by the Exiles lab entrance 1803 | -9/Mines | Discovered new exit (range 5) 1813 | -9/Mines | Entered Exiles 1813 | -9/Exiles | Accompanied by 2 allies 1843 | -9/Exiles | Led the pair of lost Derelicts to a safe place 1854 | -9/Exiles | Met 8R-AWN 1883 | -9/Exiles | Met EX-HEX 1931 | -9/Exiles | Met EX-BIN 1951 | -9/Exiles | Aligned with FarCom system 1953 | -9/Exiles | Given EX-Vault access code 2071 | -9/Exiles | Opened EX-Vault 2083 | -9/Exiles | Found Trap Reconfigurator 2119 | -9/Exiles | Warned to stay clear of 0b10 Research branches 2169 | -9/Exiles | Met EX-DEC 2195 | -9/Exiles | Learned location of Zion (-6) 2404 | -9/Exiles | Discovered new exit (range 15) 2424 | -9/Exiles | Left Exiles lab with Trap Reconfigurator 2424 | -9/Exiles | Entered Mines 2674 | -8/Mines | Core integrity fell below 50% 2751 | -8/Mines | Discovered new exit (range 9) 2774 | -8/Mines | Entered Materials 2774 | -8/Materials | Evolved 2 slots: Propulsion x1, Utility x1 2775 | -8/Materials | Identified exit to Factory 2906 | -8/Materials | Discovered new exit (range 7) 3072 | -8/Materials | Entered Storage 3238 | -8/Storage | Build established: Skirmisher 3492 | -8/Storage | Identified exit to Garrison 3516 | -8/Storage | Entered Garrison 3697 | -8/Garrison | Triggered checkpoint 3745 | -8/Garrison | Garrison Relay disabled 3818 | -8/Garrison | Build established: Mutant 3843 | -8/Garrison | Discovered new exit (range 59) 3843 | -8/Garrison | Discovered new exit (range 57) 3843 | -8/Garrison | Discovered new exit (range 45) 3899 | -8/Garrison | Triggered checkpoint 4000 | -8/Garrison | Garrison Relay disabled 4034 | -8/Garrison | Triggered checkpoint 4089 | -8/Garrison | Installed Relay Interface Framework 4168 | -8/Garrison | Triggered checkpoint 4235 | -8/Garrison | Rescued a captive Derelict 4242 | -8/Garrison | Rescued a captive Derelict 4353 | -8/Garrison | Phase Generator disabled 4375 | -8/Garrison | Build established: Bothacker-Mutant 4464 | -8/Garrison | Triggered checkpoint 4625 | -8/Garrison | System corruption reached 10% 4708 | -8/Garrison | Lost 3 allies 4747 | -8/Garrison | Garrison Relay disabled 4774 | -8/Garrison | Expanded RIF knowledge: Watcher Feeds 4896 | -8/Garrison | Entered Recycling 4896 | -8/Recycling | Accompanied by 1 ally 5330 | -8/Recycling | Discovered new exit (range 14) 5602 | -8/Recycling | Entered Factory 5602 | -6/Factory | Accompanied by 2 allies 5602 | -6/Factory | Evolved 4 slots: Propulsion x1, Utility x3 5836 | -6/Factory | Identified exit to Garrison 6026 | -6/Factory | Entered Garrison 6172 | -6/Garrison | Triggered checkpoint 6356 | -6/Garrison | Spotted B-75 Beast 6476 | -6/Garrison | Phase Generator disabled 6476 | -6/Garrison | Spotted B-75 Beast 6525 | -6/Garrison | Discovered new exit (range 13) 6531 | -6/Garrison | Entered Factory 6546 | -6/Factory | Lost 10 parts (1p4n2u3w) 6772 | -6/Factory | Build established: Mutant 6921 | -6/Factory | Core integrity fell below 50% 7057 | -6/Factory | Lost 4 parts (3n1u) 7364 | -6/Factory | Core integrity fell below 20% 7427 | -6/Factory | Lost 5 parts (1p2n1u1w) 7537 | -6/Factory | Discovered new exit (range 15) 7817 | -6/Factory | Spotted B-75 Beast 7893 | -6/Factory | Discovered new exit (range 21) 7906 | -6/Factory | Entered another Factory area 7906 | -5/Factory | Evolved 2 slots: Propulsion x1, Utility x1 7982 | -5/Factory | Discovered new exit (range 5) 8090 | -5/Factory | Hacking Suite fried by hacking feedback 8239 | -5/Factory | Identified exit to Garrison 8240 | -5/Factory | Entered Garrison 8254 | -5/Garrison | Triggered checkpoint 8277 | -5/Garrison | Garrison Relay disabled 8394 | -5/Garrison | Triggered checkpoint 8394 | -5/Garrison | Triggered checkpoint 8398 | -5/Garrison | Triggered checkpoint 8431 | -5/Garrison | Lost 3 parts (1p1n1u) 8433 | -5/Garrison | Discovered new exit (range 21) 8444 | -5/Garrison | Triggered checkpoint 8446 | -5/Garrison | Garrison Relay disabled 8447 | -5/Garrison | Lost 3 allies 8516 | -5/Garrison | Core integrity fell below 50% 8549 | -5/Garrison | Entered Factory 8561 | -5/Factory | Lost 7 parts (6u1w) 8624 | -5/Factory | Identified exit to DSF 8665 | -5/Factory | Entered DSF 8676 | -5/DSF | Core integrity fell below 20% 8686 | -5/DSF | Additional patrols routed to DSF 8729 | -5/DSF | Discovered new exit (range 22) 8741 | -5/DSF | Entered Factory 8741 | -4/Factory | Evolved 2 slots: Power x1, Utility x1 8865 | -4/Factory | Lost 9 parts (2p2n2u3w) 9192 | -4/Factory | Core integrity fell below 50% 9302 | -4/Factory | Lost 4 parts (2p2n) 9357 | -4/Factory | Spotted B-86 Titan 9362 | -4/Factory | Core integrity fell below 20% 9387 | -4/Factory | Discovered new exit (range 21) 9392 | -4/Factory | Entered Research 9392 | -3/Research | Evolved 2 slots: Propulsion x1, Utility x1 9411 | -3/Research | Lost 7 parts (1p3n1u2w) 9489 | -3/Research | Found Prototype Launcher 9489 | -3/Research | Identified Tesla Bomb Launcher 9491 | -3/Research | Found Tesla Bomb Launcher 9529 | -3/Research | Found Prototype Device 9529 | -3/Research | Identified Exp. ECM Suite 9591 | -3/Research | Build established: Sprinter 9603 | -3/Research | Spotted B-86 Titan 9609 | -3/Research | Spotted B-86 Titan 9640 | -3/Research | Discovered new exit (range 21) 9700 | -3/Research | Lost 3 parts (1p2n) 9891 | -3/Research | Entered Testing 9892 | -3/Testing | Maximum security lockdown engaged 9906 | -3/Testing | Build established: Hacker-Mutant 9961 | -3/Testing | Scanned by Researcher 9978 | -3/Testing | Crushed by falling debris 9978 | -3/Testing | System corruption reached 10% 10037 | -3/Testing | Found Portable AFG 10106 | -3/Testing | System corruption reached 30% 10123 | -3/Testing | Self-destructed Last Messages --------------- 10113_ G-73 Enforcer unfolds itself. 10113_ G-67 Veteran unfolds itself. 10113_ B-74 Champion unfolds itself. 10113_ L-61 Swordsman unfolds itself. 10113_ E-15 Imp unfolds itself. 10115_ DI/GBFTPGEKQ=A1G THTRBZU=|KXY 10115_ Slug penetrates L-61 Swordsman. 10115_ Penetrated by Slug. 10117_ Slammed into L-61 Swordsman. 10117_ Coil Gun blown off. 10117_ E-15 Imp destroyed. 10118_ Slug penetrates L-61 Swordsman. 10118_ Penetrated by Slug. 10118_ Slug penetrates L-61 Swordsman. 10119_ C-30 ARC bursts open, deploying its payload. 10119_ G-73 Enforcer unfolds itself. 10119_ G-67 Veteran unfolds itself. 10119_ L-61 Swordsman unfolds itself. 10122_ G-67 Veteran IFF system glitched. 10123_ Slug penetrates Wall. Map ----- +----------------------------------------------------+ | ?????????????????????????????????????????????????? | | ?????????????????????????????????????????????????? | | ?????????????????????????????????????????????????? | | ?????????????????????????????????????????????????? | | ?????????????????????????????????????????????????? | | ?????????????????????????????????????????????????? | | ?????????????????????????????????????????????????? | | ?????????????????????????????????????????????????? | | ?????????????????????????????????????????????????? | | ?????????????????????????????????????????????????? | | ?????????????????????????????????????????????????? | | ?????????????????????????????????????????????????? | | ?????????????????????????????????????????????????? | | ?????????????????????????????????????????????????? | | ?????????????????????????????????????????????????? | | ?????????????????????????????????????????????????? | | ?????????????????????????????????????????????????? | | ?????????????????????????????????????????????????? | | ?????????????????????????????????????????????????? | | ?????????????????????????????????????????????????? | | ##########???????????????????????????????????????? | | #????########????????i??????????????????? | | = [ #????# =#########?c######???????????? | | #????# #! #?g%%gC ????????????? | | ##???# == # "" #ggC#???????????????? | | ####+####%##### = *= # @bbg/gl #???????????????? | | % %g% p|b ![h#g g"g# #???????????????? | | #########"### # g gg/^[=llm #???????????C???????? | | ????????# ###/####;/##hg ! ! #???????????C???????? | | ?????#######"%#??## ## [ #????????????C??????? | | ######""""" # #???# ##! [ #???????????????????? | | ##" " [# #???#"##########???????????????????? | | ##" !%/"#???"%#????????????????????????????? | | ###" [#%#??? "#????????????????????????????? | | #?# %#"#???#g#????????????????????????????? | | #?#" " " w ?g???????????????????????????? | | "" #??#########+###?????????????????????????????? | | "" #????????????????????????????????????????????? | | "" #????????????????????????????????????????????? | | " #????????????????????????????????????????????? | | #????????????????????????????????????????????? | | #####????????????????????????????????????????????? | | | | | | | | | | | | | | | | | +----------------------------------------------------+ Best States ------------- Heat Dissipation 84 Energy Generation 35 Energy Capacity 325 Matter Stores 300 Matter Capacity 300 Sight Range 22 Terrain Scan Range 16 Terrain Scan Density 85 ECM Strength 3 Additional Mass Support 12 Armor Coverage 825 Utility Shielding 66 Evasion (%) 65 Targeting Accuracy 11 Core Analysis 6 Recoil Reduction 6 Kinecelleration 30 Offensive Hacking 10 Defensive Hacking 14 Relay Coupler Types 5 Relay Coupler Value 195 Item Schematics ----------------- Hvy. Missile Launcher | -8/Recycling | Hacked Gravity Neutralizer | -3/Testing | Archive Robot Schematics ------------------ L-31 Rogue | -8/Recycling | Hacked Fabricated ------------ Nothing Repaired ---------- Nothing Alien Tech Used ----------------- None Achievements -------------- None Challenges ------------ None Game ------ Seed StormDirectedInterpreter Manual? 0 Play Time 01:22:22 Cumulative 1098.8 hours Start 2025.06.10 @ 15:38:46 End 2025.06.10 @ 17:19:13 Sessions 1 Manual Loads 0 Difficulty Rogue Special Mode None Game No. 1355 Rogue 1071 Adventurer 124 Explorer 160 Win Type - Total 49 Types 35/0/8/4/1/0/0/1/0/0 Lore% 92 Gallery% 87 Achievement% 81 Wizard Run 0 Options --------- Layout 0 ASCII 0 Keyboard 1 Movement Numpad Keybinds 0 Fullscreen 2 Font 18/X11 Map View 76x50 Zoom Use 0% Tactical HUD 1 Map Filters NONE Filters NONE Steam 1 RUN: 6b524fd2-5b54-4ca3-bccb-5c9bf833d534